bitfinex-derivatives/quotes_ETHF0:USTF0_20250704
["timestamp","ask_amount","ask_price","bid_price","bid_amount"]
[1751630567877,35.446,2551.2,2550.9,3.13353009]
[1751630568081,0.78374,2551.0,2550.9,3.91729009]
[1751630568581,2.07484,2551.0,2550.9,3.91729009]
[1751630568982,2.07484,2551.0,2550.9,0.78376]
[1751630569379,1.2911,2551.0,2550.9,0.78376]
[1751630569680,0.6626,2551.1,2551.0,0.78374]
[1751630570080,1.44631,2551.1,2551.0,0.78374]
[1751630570482,0.6626,2551.1,2551.0,0.78374]
[1751630571776,35.446,2551.2,2551.1,0.78371]
[1751630572279,0.78365,2551.3,2551.2,0.78368]
[1751630572783,1.48014,2551.4,2551.3,0.78365]
[1751630572984,2.48180902,2551.4,2551.3,0.78365]
[1751630574284,1.69816902,2551.4,2551.3,0.78365]
[1751630574887,2.48178902,2551.4,2551.3,0.78365]
[1751630578490,1.69816902,2551.4,2551.3,0.78365]
[1751630578692,0.78361,2551.5,2551.4,0.78362]
[1751630578989,0.78358,2551.5,2551.4,0.78362]
[1751630579291,51.13238,2551.6,2551.5,0.78358]
[1751630579491,52.13361013,2551.6,2551.5,0.78358]
[1751630579690,16.68761013,2551.6,2551.5,0.78358]
[1751630579990,15.68638,2551.6,2551.5,0.78358]
[1751630582893,17.05938,2551.6,2551.5,0.78358]
[1751630583395,18.05990225,2551.6,2551.5,0.78358]
[1751630583996,0.78359,2551.5,2551.4,1.49389]
[1751630586096,0.78359,2551.5,2551.4,0.78359]
[1751630586495,2.19519,2551.5,2551.4,0.78359]
[1751630592499,3.37062,2551.5,2551.2,0.6666]
[1751630592701,5.16697,2551.3,2550.9,3.13353009]
[1751630592896,0.78374,2551.0,2550.9,0.78372]
[1751630595199,0.78377,2550.9,2550.8,1.47418]
[1751630595394,1.46047,2550.9,2550.8,1.47418]
[1751630599504,0.78374,2551.0,2550.9,0.78377]
[1751630599703,0.78372,2551.1,2551.0,0.78374]
[1751630600298,0.7837,2551.2,2551.1,0.78368]
[1751630601099,4.64537,2551.3,2551.2,0.78368]
[1751630602906,1.43757,2551.3,2551.2,0.78368]
[1751630603711,35.442,2551.4,2551.3,0.78365]
[1751630604206,36.22564,2551.4,2551.3,0.78365]
[1751630604401,36.22564,2551.4,2551.2,1.43365]
[1751630604402,0.78365,2551.3,2551.2,1.43365]
[1751630614118,36.22247,2551.9,2551.8,0.78346]
[1751630614322,1.6976428,2551.9,2551.8,0.78346]
[1751630614623,0.6981,2551.9,2551.8,0.78346]
[1751630615520,1.48156,2551.9,2551.8,0.78346]
[1751630616023,0.6981,2551.9,2551.8,0.78346]
[1751630616319,1.48156,2551.9,2551.8,0.78346]
[1751630616521,14.1878,2552.0,2551.9,0.78346]
[1751630616720,3.2078,2552.0,2551.9,0.78346]
[1751630616920,14.8474,2552.4,2552.3,0.78334]
[1751630617118,15.17745823,2552.4,2552.3,0.78334]
[1751630617309,14.1878,2552.4,2552.3,0.78334]
[1751630617720,3.2078,2552.4,2552.3,0.78334]
[1751630619216,36.88883,2552.7,2552.6,0.78325]
[1751630620420,36.1056,2552.7,2552.2,1.321]
[1751630620623,0.78332,2552.4,2552.3,0.78332]
[1751630622923,0.7833,2552.5,2552.4,0.78327]
[1751630624624,0.78334,2552.4,2552.3,0.78332]
[1751630625118,0.78334,2552.3,2552.2,2.10435]
[1751630625325,1.48424,2552.3,2552.2,2.10435]
[1751630627126,1.48424,2552.3,2552.2,1.45095]
[1751630627426,1.48424,2552.3,2552.2,0.78335]
[1751630627627,0.7834,2552.2,2552.1,0.7834]
[1751630628023,0.7834,2552.1,2551.7,5.84741]
[1751630628328,1.2931,2552.2,2551.8,1.95871]
[1751630628516,2.07651,2552.2,2551.7,6.54611]
[1751630628721,1.2931,2552.2,2551.7,6.54611]
[1751630628921,0.78347,2552.0,2551.9,0.78344]
[1751630632026,0.78349,2551.9,2551.8,0.78345]
[1751630632227,1.44309,2551.9,2551.8,0.78345]
[1751630634529,0.6596,2551.9,2551.8,0.78345]
[1751630641336,1.44306,2551.9,2551.8,0.78345]
[1751630641536,0.6596,2551.9,2551.8,0.78345]
[1751630643937,1.44306,2551.9,2551.8,0.78345]
[1751630644637,0.6596,2551.9,2551.8,0.78345]
[1751630645338,1.44306,2551.9,2551.8,0.78345]
[1751630648236,0.6596,2551.9,2551.8,0.78345]
[1751630648438,1.44306,2551.9,2551.8,0.78345]
[1751630650141,0.6596,2551.9,2551.8,0.78345]
[1751630650740,1.44306,2551.9,2551.8,0.78345]
[1751630651644,0.6596,2551.9,2551.8,0.78345]
[1751630651846,1.44306,2551.9,2551.8,0.78345]
[1751630652447,0.78352,2551.8,2551.7,0.78349]
[1751630652941,1.44309,2551.9,2551.8,0.78349]
[1751630655838,9.87210306,2551.9,2551.1,0.6607]
[1751630656038,0.78368,2551.2,2551.1,1.44438]
[1751630657146,1.42658,2551.3,2551.2,0.78368]
[1751630657346,0.78368,2551.3,2551.2,0.78368]
[1751630660249,0.78368,2551.2,2551.1,0.6607]
[1751630661451,0.78368,2551.2,2551.1,1.44441]
[1751630663249,3.2078,2551.4,2551.2,0.78365]
[1751630663250,0.78368,2551.3,2551.2,0.78365]
[1751630667846,0.78363,2551.4,2551.3,0.78362]
[1751630670254,0.78361,2551.5,2551.4,0.78357]
[1751630670745,0.6696,2552.3,2551.4,0.78357]
[1751630670746,0.78339,2552.2,2552.1,0.78337]
[1751630670950,0.6508,2552.3,2552.2,0.78337]
[1751630672353,2.0315,2552.3,2552.2,0.78337]
[1751630676255,2.81484,2552.3,2552.2,0.78337]
[1751630676549,2.0315,2552.3,2552.2,0.78337]
[1751630682160,2.81484,2552.3,2552.2,0.78337]
[1751630683853,2.0315,2552.3,2551.6,3.2078]
[1751630684058,3.2078,2551.7,2551.3,3.11803162]
[1751630684261,3.99142,2551.4,2551.3,3.11803162]
[1751630684559,3.99144,2551.4,2550.8,2.63697]
[1751630684755,3.99144,2551.4,2550.8,3.99187]
[1751630684955,3.99144,2551.4,2551.1,0.78369]
[1751630685153,0.7837,2551.2,2551.1,0.78368]
[1751630686157,0.78371,2551.1,2551.0,1.43122]
[1751630686558,0.7837,2551.2,2551.1,0.78369]
[1751630686866,0.78371,2551.1,2551.0,1.43122]
[1751630689167,0.7837,2551.2,2551.1,0.78369]
[1751630690968,0.7837,2551.2,2550.7,5.16735]
[1751630690969,0.78384,2550.7,2550.6,0.78383]
[1751630691153,0.78388,2550.6,2550.5,0.78387]
[1751630692163,0.78389,2550.5,2550.4,0.6694]
[1751630692562,0.78389,2550.5,2550.4,1.4533]
[1751630693769,5.16724,2550.9,2550.5,0.78386]
[1751630693770,0.78388,2550.6,2550.5,0.78386]
[1751630694161,0.78385,2550.7,2550.6,0.78383]
[1751630700773,0.78381,2550.8,2550.7,0.7838]
[1751630700977,0.78381,2550.9,2550.8,0.78378]
[1751630702770,0.78389,2550.5,2550.4,0.6694]
[1751630702966,0.78395,2550.3,2550.2,0.6652]
[1751630703163,0.78398,2550.2,2550.1,3.2078]
[1751630703569,0.78398,2550.3,2550.2,0.78395]
[1751630704576,2.79775,2550.4,2550.3,0.78395]
[1751630704771,1.43295,2550.4,2550.3,0.78395]
[1751630705075,0.78389,2550.5,2550.4,0.78389]
[1751630706476,0.78386,2550.7,2550.6,0.78383]
[1751630706974,0.78383,2550.8,2550.7,0.78381]
[1751630707175,0.78383,2550.8,2550.4,1.95981]
[1751630707176,0.78383,2550.8,2550.2,0.6933]
[1751630707376,0.78392,2550.5,2550.4,0.7839]
[1751630707576,0.78395,2550.4,2550.3,0.78394]
[1751630707875,0.78395,2550.3,2550.2,1.47726]
[1751630708074,0.78398,2550.2,2550.1,4.657]
[1751630710975,1.47332,2550.4,2550.3,0.78395]
[1751630711178,0.6894,2550.4,2550.3,0.78395]
[1751630712379,0.78383,2550.8,2550.7,0.7838]
[1751630714184,1.93625109,2550.8,2550.7,0.7838]
[1751630714379,1.93625109,2550.8,2550.5,3.31771]
[1751630714380,3.8912,2550.9,2550.8,0.7838]
[1751630714682,5.04373142,2550.9,2550.8,0.7838]
[1751630714981,5.82750142,2550.9,2550.8,0.7838]
[1751630715582,4.67497,2550.9,2550.8,0.7838]
[1751630716687,0.78386,2550.7,2550.6,0.78381]
[1751630717482,0.78386,2550.6,2550.5,1.44047]
[1751630717683,0.78386,2550.6,2550.5,0.78387]
[1751630718278,0.78392,2550.5,2550.4,0.7839]
[1751630718485,1.48802,2550.5,2550.4,0.7839]
[1751630726590,0.78395,2550.4,2550.3,0.78392]
[1751630727193,0.78398,2550.3,2550.2,0.78396]
[1751630729296,0.78398,2550.2,2550.1,3.2078]
[1751630729496,1.46988,2550.2,2550.1,3.2078]
[1751630730496,1.46988,2550.2,2550.1,3.99179]
[1751630736701,0.6859,2550.2,2550.1,3.99179]
[1751630736901,0.78398,2550.3,2550.2,0.78398]
[1751630737300,0.78398,2550.3,2550.2,1.47558]
[1751630741802,0.78405,2550.1,2550.0,0.78402]
[1751630742300,3.99185,2550.1,2550.0,0.78402]
[1751630742501,4.69685,2550.1,2550.0,0.78402]
[1751630742907,0.78411,2549.9,2549.8,0.78407]
[1751630743103,0.78411,2549.9,2549.5,6.47719]
[1751630743104,1.96024,2549.9,2549.5,0.78418]
[1751630743305,0.78417,2549.6,2549.5,0.78418]
[1751630743505,0.78423,2549.5,2549.4,0.78421]
[1751630744609,0.78423,2549.4,2549.3,2.12744]
[1751630745306,0.78423,2549.4,2549.3,1.3432]
[1751630745503,0.78423,2549.4,2549.0,1.3089]
[1751630745504,3.2078,2549.4,2548.9,0.78435]
[1751630745808,0.78438,2549.0,2548.9,0.78435]
[1751630746508,45.97274,2549.0,2548.4,3.2078]
[1751630746809,0.78447,2548.7,2548.4,3.2078]
[1751630747010,0.78443,2548.8,2548.4,3.2078]
[1751630747209,0.78443,2548.8,2548.7,0.78445]
[1751630747406,2.18421,2548.9,2548.8,0.78442]
[1751630747605,0.78442,2548.8,2548.7,0.78443]
[1751630747808,2.1842,2548.9,2548.8,0.78442]
[1751630748107,1.3998,2548.9,2548.8,0.78442]
[1751630748308,2.1842,2548.9,2548.8,0.78442]
[1751630750111,1.3998,2548.9,2548.8,0.78442]
[1751630750309,48.3288,2548.9,2548.8,0.78442]
[1751630751112,49.11318,2548.9,2548.8,0.78442]
[1751630751511,48.3288,2548.9,2548.8,0.78442]
[1751630752214,47.71338,2548.9,2548.8,0.78442]
[1751630752712,49.08608,2548.9,2548.8,0.78442]
[1751630752914,3.2078,2549.0,2548.9,0.78438]
[1751630753114,50.1348,2549.0,2548.9,0.78438]
[1751630753813,3.8528,2549.3,2549.2,0.78429]
[1751630754013,50.7778,2549.3,2549.2,0.78429]
[1751630754610,50.7858,2549.3,2549.2,0.78429]
[1751630754811,51.57006,2549.3,2549.2,0.78429]
[1751630757618,0.78435,2549.0,2548.9,1.47254]
[1751630757818,0.78441,2548.9,2548.8,0.78439]
[1751630758019,0.78441,2548.8,2548.7,0.6643]
[1751630758219,0.78445,2548.7,2548.6,0.78447]
[1751630758419,36.62945,2548.7,2548.6,0.78447]
[1751630759320,0.78448,2548.6,2548.5,1.47399]
[1751630761119,36.62946,2548.7,2548.6,0.78448]
[1751630762823,0.78448,2548.6,2548.5,1.47399]
[1751630763521,47.72446,2548.7,2548.6,0.78448]
[1751630764224,0.78448,2548.6,2548.5,1.47398]
[1751630764622,0.78448,2548.6,2548.5,0.6895]
[1751630764822,1.96124,2548.6,2548.1,3.2078]
[1751630765022,0.7846,2548.3,2548.2,0.78456]
[1751630765217,36.6176,2548.3,2548.2,0.78456]
[1751630765926,35.833,2548.3,2548.2,0.78456]
[1751630766320,36.61757,2548.3,2548.2,0.78456]
[1751630766526,35.833,2548.3,2548.2,0.78456]
[1751630766726,36.61757,2548.3,2548.2,0.78456]
[1751630767728,35.833,2548.3,2548.2,0.78456]
[1751630768228,36.61757,2548.3,2548.2,0.78456]
[1751630768923,36.61757,2548.3,2547.9,4.71181]
[1751630769129,0.78464,2548.2,2548.1,0.7846]
[1751630770224,0.78466,2548.1,2548.0,0.78463]
[1751630770419,3.2078,2548.1,2548.0,0.78463]
[1751630771332,3.99243,2548.1,2548.0,0.78463]
[1751630771522,3.2078,2548.1,2548.0,0.78463]
[1751630772127,3.99243,2548.1,2548.0,0.78463]
[1751630773730,3.2078,2548.1,2548.0,0.78463]
[1751630774427,3.99243,2548.1,2548.0,0.78463]
[1751630775228,0.78466,2548.0,2547.9,2.15637]
[1751630775429,0.78472,2547.9,2547.6,1.96194]
[1751630775629,1.45852,2547.9,2547.8,0.78469]
[1751630776831,0.78475,2547.7,2547.6,2.11565]
[1751630777124,36.58875,2547.7,2547.6,2.11565]
[1751630778129,3.2078,2547.8,2547.7,0.78475]
[1751630778325,39.0098,2547.8,2547.7,0.78475]
[1751630778732,39.79452,2547.8,2547.7,0.78475]
[1751630779433,0.78475,2547.7,2547.6,2.11566]
[1751630779834,3.8486,2547.8,2547.7,0.78475]
[1751630780134,35.794,2547.8,2547.7,0.78475]
[1751630780633,36.57872,2547.8,2547.7,0.78475]
[1751630781337,35.794,2547.8,2547.7,0.78475]
[1751630782427,36.57872,2547.8,2547.7,0.78475]
[1751630782635,35.794,2547.8,2547.7,0.78475]
[1751630783337,36.57872,2547.8,2547.7,0.78475]
[1751630786133,0.78472,2547.8,2547.7,0.78475]
[1751630786438,0.6408,2548.1,2548.0,0.78466]
[1751630786639,0.78455,2548.5,2548.4,0.78451]
[1751630786837,1.10476618,2548.5,2548.4,0.78451]
[1751630787030,36.89776618,2548.5,2548.4,0.78451]
[1751630787537,0.7845,2548.5,2548.4,0.78451]
[1751630787737,35.793,2548.5,2548.4,0.78451]
[1751630789434,0.78443,2548.8,2548.7,0.78444]
[1751630789641,0.78443,2548.8,2548.5,0.7845]
[1751630789642,11.102,2548.6,2548.5,0.7845]
[1751630791241,0.78444,2548.7,2548.6,0.78447]
[1751630791440,47.67944,2548.7,2548.6,0.78447]
[1751630791840,3.2078,2548.9,2548.7,0.78441]
[1751630792038,47.67043,2548.8,2548.7,0.78441]
[1751630793039,0.78448,2548.7,2548.6,0.78445]
[1751630796543,0.78448,2548.7,2548.4,1.96133]
[1751630796544,47.66844,2548.8,2548.7,0.78444]
[1751630797044,3.2078,2548.9,2548.8,0.78441]
[1751630797442,38.9698,2548.9,2548.8,0.78441]
[1751630798845,3.2078,2548.9,2548.8,0.78441]
[1751630799045,38.9698,2548.9,2548.8,0.78441]
[1751630799348,3.2078,2548.9,2548.8,0.78441]
[1751630799838,38.9658,2548.9,2548.8,0.78441]
[1751630800345,39.75018,2548.9,2548.8,0.78441]
[1751630800845,0.78444,2548.8,2548.7,0.78442]
[1751630801144,0.78444,2548.7,2548.6,0.6794]
[1751630801337,0.7845,2548.6,2548.5,0.78447]
[1751630802748,2.1145,2548.6,2548.5,0.78447]
[1751630803848,0.7845,2548.6,2548.5,0.78447]
[1751630804348,36.53946,2548.7,2548.6,0.78447]
[1751630804849,1.42853,2548.8,2548.7,0.78444]
[1751630805147,37.20053,2548.8,2548.7,0.78444]
[1751630806251,0.78444,2548.7,2548.6,1.48225]
[1751630807749,0.78444,2548.7,2548.6,0.78445]
[1751630808650,0.78444,2548.7,2548.6,0.78447]
[1751630813157,0.7845,2548.6,2548.5,0.78448]
[1751630814854,36.5425,2548.6,2548.5,0.78448]
[1751630816855,0.7845,2548.5,2548.4,4.6585]
[1751630817050,36.5425,2548.6,2548.5,0.7845]
[1751630819265,0.7845,2548.5,2548.4,4.65853]
[1751630820066,0.7845,2548.5,2548.4,3.99233]
[1751630820569,0.7845,2548.6,2548.5,0.7845]
[1751630820758,37.6268632,2548.6,2548.5,0.7845]
[1751630821866,0.78454,2548.5,2548.4,0.78451]
[1751630822264,0.78454,2548.5,2548.3,1.3651]
[1751630822265,36.5245,2548.6,2548.5,0.7845]
[1751630826171,0.7845,2548.6,2548.5,0.7845]
[1751630826366,36.5075,2548.6,2548.5,0.7845]
[1751630827169,0.7845,2548.6,2548.5,0.7845]
[1751630827369,36.5045,2548.6,2548.5,0.7845]
[1751630829371,0.78454,2548.5,2548.3,1.3651]
[1751630829571,0.78454,2548.5,2548.4,0.78454]
[1751630829871,0.78454,2548.4,2548.3,2.14963]
[1751630830468,0.78452,2548.5,2548.4,0.7845]
[1751630830872,0.78454,2548.4,2548.3,1.46654]
[1751630831073,1.44004,2548.4,2548.3,0.78454]
[1751630833775,0.78454,2548.5,2548.4,0.7845]
[1751630834077,1.88738852,2548.5,2548.4,0.7845]
[1751630837178,36.49954,2548.5,2548.4,0.7845]
[1751630837474,37.60222589,2548.5,2548.4,0.7845]
[1751630837674,36.49954,2548.5,2548.4,0.7845]
[1751630838075,1.10280855,2548.5,2548.4,0.7845]
[1751630838275,37.60030855,2548.5,2548.4,0.7845]
[1751630838576,36.81580855,2548.5,2548.4,0.7845]
[1751630839377,37.60030855,2548.5,2548.4,0.7845]
[1751630840373,36.81580855,2548.5,2548.4,0.7845]
[1751630841177,37.60031855,2548.5,2548.4,0.7845]
[1751630841875,37.60030855,2548.5,2548.4,0.7845]
[1751630842075,36.81580855,2548.5,2548.4,0.7845]
[1751630842480,37.60030855,2548.5,2548.4,0.7845]
[1751630842980,36.81515209,2548.5,2548.4,0.7845]
[1751630844380,37.59965209,2548.5,2548.4,0.7845]
[1751630844581,36.4975,2548.5,2548.4,0.7845]
[1751630845381,37.1357,2548.6,2548.5,0.7845]
[1751630851376,3.2078,2549.0,2548.6,1.96114]
[1751630851582,36.7701209,2548.9,2548.8,0.78441]
[1751630851986,37.5545009,2548.9,2548.8,0.78441]
[1751630852188,38.9049009,2548.9,2548.8,0.78441]
[1751630853186,37.80278,2548.9,2548.8,0.78441]
[1751630858690,40.06644977,2548.9,2547.9,3.90536919]
[1751630858889,40.06644977,2548.9,2548.3,0.78455]
[1751630858890,3.99233,2548.5,2548.3,0.78455]
[1751630859190,1.46074,2548.4,2548.3,0.78455]
[1751630859894,0.6762,2548.4,2548.1,0.6775]
[1751630860087,35.672,2548.3,2547.8,3.90536919]
[1751630860389,0.78469,2547.9,2547.8,5.37657919]
[1751630860589,0.78469,2547.9,2547.8,1.47121]
[1751630860790,0.78468,2548.0,2547.9,0.78468]
[1751630860990,1.48328,2548.0,2547.9,0.78468]
[1751630861489,0.78469,2547.9,2547.8,1.4712]
[1751630861892,0.78472,2547.8,2547.7,1.47313]
[1751630862089,2.11951,2547.9,2547.8,0.78472]
[1751630862388,0.78477,2547.7,2547.6,0.78478]
[1751630862790,0.78478,2547.6,2547.5,1.4713]
[1751630863190,0.78477,2547.7,2547.6,0.78478]
[1751630864186,2.11957,2547.7,2547.6,0.78478]
[1751630864586,1.3348,2547.7,2547.6,0.78478]
[1751630864793,2.11955,2547.7,2547.6,0.78478]
[1751630867692,0.78484,2547.5,2547.4,0.78483]
[1751630869992,1.4695,2547.6,2547.5,0.78481]
[1751630870795,0.78484,2547.5,2547.4,0.78483]
[1751630871401,1.4695,2547.6,2547.5,0.78481]
[1751630871601,0.6847,2547.6,2547.5,0.78481]
[1751630872100,0.6847,2547.6,2547.3,2.62479]
[1751630872101,35.673,2547.7,2547.6,0.78478]
[1751630872300,0.78484,2547.5,2547.4,0.78482]
[1751630872496,0.78484,2547.5,2547.4,0.78484]
[1751630872698,0.78487,2547.4,2547.3,0.78485]
[1751630872896,1.48057,2547.4,2547.3,0.78485]
[1751630873792,0.6957,2547.4,2547.3,0.78485]
[1751630874298,1.48054,2547.4,2547.3,0.78485]
[1751630874600,0.6957,2547.4,2547.3,0.78485]
[1751630874795,1.48054,2547.4,2547.3,0.78485]
[1751630875995,0.6957,2547.4,2547.3,0.78485]
[1751630876890,0.6957,2547.4,2547.2,1.45059]
[1751630877100,0.78487,2547.3,2547.2,1.45059]
[1751630877303,0.78487,2547.3,2547.1,3.8716]
[1751630877304,0.78491,2547.2,2547.1,0.6638]
[1751630877801,0.78491,2547.2,2547.1,1.44874]
[1751630878401,0.78491,2547.2,2547.1,0.6638]
[1751630878604,0.78499,2547.0,2546.9,0.78496]
[1751630879700,0.785,2546.9,2546.8,3.8782]
[1751630879904,0.785,2546.9,2546.8,4.66323]
[1751630880302,0.785,2546.9,2546.8,3.8782]
[1751630880604,35.678,2546.9,2546.8,3.99283]
[1751630880804,0.785,2546.9,2546.8,3.99283]
[1751630883907,36.488,2547.0,2546.9,0.78498]
[1751630884097,0.785,2546.9,2546.8,3.99281]
[1751630885911,36.47999,2547.0,2546.9,0.785]
[1751630889608,0.78501,2546.9,2546.8,0.785]
[1751630889912,0.78503,2546.8,2546.7,2.18012]
[1751630890208,0.78502,2546.9,2546.8,0.78501]
[1751630891213,0.78502,2546.9,2546.8,0.78503]
[1751630892012,0.78503,2546.8,2546.7,2.18014]
[1751630892218,0.78503,2546.8,2546.2,1.96297]
[1751630892219,11.056,2546.8,2546.2,0.78518]
[1751630892414,0.7852,2546.3,2546.2,0.78518]
[1751630892611,39.70497,2546.4,2546.3,0.78518]
[1751630893005,38.9228,2546.4,2546.3,0.78518]
[1751630893209,38.9268,2546.7,2546.6,0.78506]
[1751630893415,0.78511,2546.6,2546.5,0.78511]
[1751630893713,0.78511,2546.6,2546.5,2.84531]
[1751630893914,39.71588,2546.7,2546.6,0.78509]
[1751630894109,39.71588,2546.7,2546.5,2.0602]
[1751630894110,3.2078,2547.0,2546.5,4.02298]
[1751630894315,0.78506,2546.8,2546.7,0.78505]
[1751630894517,35.721,2546.9,2546.6,1.3709]
[1751630894717,0.78505,2546.8,2546.7,0.78503]
[1751630895113,36.52303,2546.9,2546.8,0.78501]
[1751630895518,39.73377,2547.0,2546.9,0.785]
[1751630896015,0.78496,2547.1,2547.0,0.78493]
[1751630896408,0.78493,2547.2,2547.1,0.78492]
[1751630896624,0.78494,2547.1,2547.0,0.78495]
[1751630896816,0.78494,2547.1,2547.0,1.44685]
[1751630900220,1.46834,2547.1,2547.0,1.44685]
[1751630902023,0.6834,2547.1,2547.0,1.44685]
[1751630902224,1.46834,2547.1,2547.0,0.6619]
[1751630903023,0.78499,2547.0,2546.7,5.17044]
[1751630903225,0.78499,2547.0,2546.9,0.785]
[1751630903421,1.46836,2547.1,2547.0,0.78497]
[1751630905331,0.6834,2547.1,2547.0,0.78497]
[1751630906425,1.46834,2547.1,2547.0,0.78497]
[1751630906728,36.4154,2547.1,2547.0,0.78497]
[1751630906928,37.20034,2547.1,2547.0,0.78497]
[1751630907529,36.4154,2547.1,2547.0,0.78497]
[1751630907927,37.20034,2547.1,2547.0,0.78497]
[1751630908224,56.534,2547.4,2547.3,0.78487]
[1751630908431,4.69231,2547.6,2547.5,0.78481]
[1751630908633,2.57093684,2547.6,2547.5,0.78481]
[1751630908931,38.31293684,2547.6,2547.5,0.78481]
[1751630909132,1.78612684,2547.6,2547.5,0.78481]
[1751630909332,0.6997,2547.6,2547.5,0.78481]
[1751630909633,2.20574,2547.8,2547.7,0.78475]
[1751630909832,39.7439787,2547.8,2547.7,0.78475]
[1751630910327,38.3229587,2547.8,2547.7,0.78475]
[1751630910531,37.23642,2547.8,2547.7,0.78475]
[1751630910731,0.78478,2547.7,2547.6,0.78476]
[1751630911935,38.62075,2547.8,2547.7,0.78475]
[1751630912135,0.6997,2547.8,2547.7,0.78475]
[1751630912336,37.23442,2547.8,2547.7,0.78475]
[1751630913033,0.78477,2547.7,2547.6,0.78475]
[1751630916539,1.48443,2547.8,2547.7,0.78475]
[1751630916734,37.21643,2547.8,2547.7,0.78475]
[1751630916934,0.78481,2547.6,2547.5,0.78478]
[1751630917543,0.78481,2547.6,2547.5,0.78481]
[1751630919038,38.54684,2547.8,2547.7,0.78475]
[1751630919641,0.78479,2547.7,2547.6,0.78475]
[1751630923842,0.78475,2547.7,2547.6,0.78475]
[1751630924443,36.49075,2547.7,2547.6,0.78475]
[1751630933242,0.78484,2547.5,2547.4,0.7848]
[1751630933446,0.78484,2547.4,2547.3,0.78485]
[1751630933637,1.43184,2547.4,2547.3,0.78485]
[1751630934042,0.647,2547.4,2547.3,1.46645]
[1751630934351,1.78479,2547.7,2547.6,0.78478]
[1751630934544,37.48479,2547.7,2547.6,0.78478]
[1751630934744,36.718,2547.7,2547.6,0.78478]
[1751630934945,1.0,2547.7,2547.6,0.78478]
[1751630936841,1.0,2547.7,2547.6,5.78478]
[1751630937046,1.0,2547.7,2547.6,7.20128]
[1751630937744,0.6694,2548.2,2548.1,0.78463]
[1751630937951,36.4024,2548.2,2548.1,0.78463]
[1751630938148,0.6694,2548.2,2548.1,0.78463]
[1751630938352,36.3964,2548.2,2548.1,0.78463]
[1751630938648,35.727,2548.2,2548.1,0.78463]
[1751630940142,3.8772,2548.4,2548.3,0.78457]
[1751630940342,40.80599325,2548.4,2548.3,0.78457]
[1751630941244,0.7846,2548.2,2547.8,5.16959]
[1751630941453,0.7846,2548.2,2548.1,0.78463]
[1751630941653,0.7846,2548.2,2547.8,3.862]
[1751630941654,1.96143,2548.3,2548.0,0.78465]
[1751630941855,0.78469,2548.0,2547.9,0.78467]
[1751630942048,36.52069,2548.0,2547.9,0.78467]
[1751630942248,37.87449,2548.0,2547.9,0.78467]
[1751630942551,35.736,2548.0,2547.9,0.78467]
[1751630942751,0.78464,2548.1,2548.0,0.78466]
[1751630942949,36.53264,2548.1,2548.0,0.78466]
[1751630943461,35.748,2548.1,2548.0,0.78466]
[1751630943759,36.53263,2548.1,2548.0,0.78466]
[1751630943955,35.748,2548.1,2548.0,0.78466]
[1751630944356,36.53263,2548.1,2548.0,0.78466]
[1751630945253,35.748,2548.1,2548.0,0.78466]
[1751630945452,36.53263,2548.1,2548.0,0.78466]
[1751630945652,35.748,2548.1,2548.0,0.78466]
[1751630946260,1.48589,2548.3,2548.2,0.7846]
[1751630946457,37.22489,2548.3,2548.2,0.7846]
[1751630947161,0.78463,2548.2,2548.1,0.78461]
[1751630950258,2.13837,2548.4,2548.3,0.78457]
[1751630950459,37.86537,2548.4,2548.3,0.78457]
[1751630951857,2.13837,2548.4,2548.3,0.78457]
[1751630952063,37.85934,2548.4,2548.3,0.78457]
[1751630952861,0.7846,2548.3,2548.2,0.78457]
[1751630953064,0.7847,2547.9,2547.8,0.7847]
[1751630953255,39.7075,2547.9,2547.8,0.78472]
[1751630953459,0.78473,2547.8,2547.7,0.78473]
[1751630953662,0.78478,2547.7,2547.6,0.78476]
[1751630953866,36.91878,2547.7,2547.6,0.78476]
[1751630954660,36.128,2547.7,2547.6,0.78478]
[1751630954860,0.7847,2547.9,2547.4,1.9621]
[1751630955060,36.128,2547.8,2547.5,1.4021]
[1751630955265,36.128,2547.8,2547.6,0.6508]
[1751630955661,1.4151,2548.1,2547.7,0.78472]
[1751630955965,0.78471,2547.9,2547.7,1.45893]
[1751630956163,0.78472,2547.8,2547.7,1.45893]
[1751630956560,0.78472,2547.8,2547.7,1.45894]
[1751630958366,1.46151,2547.9,2547.8,0.78472]
[1751630958665,0.78466,2548.1,2548.0,0.78465]
[1751630958862,37.58366,2548.1,2548.0,0.78465]
[1751630959261,0.78467,2548.0,2547.9,0.78467]
[1751630959967,36.88867,2548.0,2547.9,0.78467]
[1751630960170,1.47965,2548.1,2548.0,0.78466]
[1751630960367,36.793,2548.1,2548.0,0.78466]
[1751630960869,37.57563,2548.1,2548.0,0.78466]
[1751630961063,1.47963,2548.1,2548.0,0.78466]
[1751630961365,37.57163,2548.1,2548.0,0.78466]
[1751630961565,37.57165,2548.1,2548.0,0.78466]
[1751630962268,0.78469,2548.0,2547.9,0.78467]
[1751630962672,36.87469,2548.0,2547.9,0.78467]
[1751630963165,36.09,2548.0,2547.9,0.78467]
[1751630963363,36.081,2548.0,2547.9,0.78469]
[1751630967067,36.86566,2548.0,2547.9,0.78469]
[1751630967869,36.081,2548.0,2547.9,1.48819]
[1751630968865,3.2078,2548.2,2547.9,0.7035]
[1751630969171,3.2078,2548.2,2548.1,0.78463]